[Event "*** Titled Tuesday Blitz"]
[Site "Chess.com"]
[Date "2020.12.01"]
[Round "7"]
[White "ApacheSVD"]
[Black "ViktoriyaTarasova"]
[Result "1-0"]
[WhiteElo "2420"]
[BlackElo "2279"]
[TimeControl "180+1"]
[EndTime "11:15:19 PST"]
[Termination "ApacheSVD won by resignation"]

1. e4 {[%clk 0:02:56.6]} 1... e5 {[%clk 0:02:59.1]} 2. Nf3 {[%clk 0:02:56.7]}
2... Nc6 {[%clk 0:02:59.4]} 3. Nc3 {[%clk 0:02:57.3]} 3... Nf6 {[%clk
0:02:58.3]} 4. a3 {[%clk 0:02:57.7]} 4... d5 {[%clk 0:02:53.1]} 5. Bb5 {[%clk
0:02:57]} 5... d4 {[%clk 0:02:01.1]} 6. Ne2 {[%clk 0:02:57.1]} 6... Bd7 {[%clk
0:01:48.2]} 7. d3 {[%clk 0:02:53.2]} 7... Bd6 {[%clk 0:01:46.3]} 8. O-O {[%clk
0:02:53.1]} 8... O-O {[%clk 0:01:45.3]} 9. Bc4 {[%clk 0:02:53.5]} 9... h6 {[%clk
0:01:44.4]} 10. c3 {[%clk 0:02:53.2]} 10... dxc3 {[%clk 0:01:43.4]} 11. bxc3
{[%clk 0:02:53.6]} 11... a6 {[%clk 0:01:36.3]} 12. Rb1 {[%clk 0:02:52]} 12... b5
{[%clk 0:01:36.1]} 13. Ba2 {[%clk 0:02:52.3]} 13... Ne7 {[%clk 0:01:33.4]} 14.
Ng3 {[%clk 0:02:52.3]} 14... Ng6 {[%clk 0:01:33.2]} 15. d4 {[%clk 0:02:52.2]}
15... Qe7 {[%clk 0:01:30.8]} 16. Nf5 {[%clk 0:02:40.6]} 16... Bxf5 {[%clk
0:01:21.7]} 17. exf5 {[%clk 0:02:41.5]} 17... e4 {[%clk 0:00:38.1]} 18. fxg6
{[%clk 0:02:36.9]} 18... exf3 {[%clk 0:00:38.1]} 19. gxf7+ {[%clk 0:02:37.1]}
19... Kh8 {[%clk 0:00:35.4]} 20. Qxf3 {[%clk 0:02:37.4]} 20... c6 {[%clk
0:00:33.9]} 21. Bd2 {[%clk 0:02:33.5]} 21... Bxa3 {[%clk 0:00:33]} 22. Rfe1
{[%clk 0:02:32.4]} 22... Qd6 {[%clk 0:00:24.5]} 23. Re6 {[%clk 0:02:31.6]} 23...
Qd8 {[%clk 0:00:20.3]} 24. Bxh6 {[%clk 0:02:27.1]} 24... Rxf7 {[%clk 0:00:20.1]}
25. Re5 {[%clk 0:02:11.7]} 25... Rf8 {[%clk 0:00:18.7]} 26. Bg5 {[%clk
0:02:08.4]} 26... Qd7 {[%clk 0:00:14.8]} 27. Be6 {[%clk 0:01:54.7]} 27... Qd6
{[%clk 0:00:14.7]} 28. Qh3+ {[%clk 0:01:54.7]} 28... Nh7 {[%clk 0:00:14.5]} 29.
Be7 {[%clk 0:01:32.9]} 29... Qxe7 {[%clk 0:00:07.2]} 30. Bf5 {[%clk 0:01:33.2]}
30... Rxf5 {[%clk 0:00:06.7]} 31. Rxe7 {[%clk 0:01:31.6]} 31... Rf6 {[%clk
0:00:06.8]} 32. Rc7 {[%clk 0:01:28.6]} 32... Raf8 {[%clk 0:00:06.5]} 33. Rf1
{[%clk 0:01:25.6]} 33... Bd6 {[%clk 0:00:06.3]} 34. Rc8 {[%clk 0:01:25.3]} 34...
Kg8 {[%clk 0:00:05.5]} 35. Rxf8+ {[%clk 0:01:25.1]} 35... Nxf8 {[%clk
0:00:06.1]} 36. Qc8 {[%clk 0:01:22.1]} 36... a5 {[%clk 0:00:06.3]} 37. g3 {[%clk
0:01:21.2]} 37... a4 {[%clk 0:00:06.6]} 38. Qxc6 {[%clk 0:01:20.2]} 38... a3
{[%clk 0:00:06.6]} 39. Qxb5 {[%clk 0:01:19.2]} 39... Kh8 {[%clk 0:00:07.1]} 40.
c4 {[%clk 0:01:14.8]} 40... a2 {[%clk 0:00:07.1]} 41. Qa4 {[%clk 0:01:14]} 41...
Rf3 {[%clk 0:00:06]} 42. Qxa2 {[%clk 0:01:13.6]} 1-0

[Event "*** Titled Tuesday Blitz"]
[Site "Chess.com"]
[Date "2020.12.01"]
[Round "7"]
[White "Blitzstream"]
[Black "GigaQuparadze"]
[Result "0-1"]
[WhiteElo "2763"]
[BlackElo "2915"]
[TimeControl "180+1"]
[EndTime "11:15:23 PST"]
[Termination "GigaQuparadze won by resignation"]

1. d4 {[%clk 0:03:00.9]} 1... Nf6 {[%clk 0:02:59.3]} 2. Bg5 {[%clk 0:03:00.8]}
2... e6 {[%clk 0:03:00.2]} 3. e4 {[%clk 0:03:00.6]} 3... c5 {[%clk 0:02:58.9]}
4. d5 {[%clk 0:02:46]} 4... d6 {[%clk 0:02:55.7]} 5. Nc3 {[%clk 0:02:44.6]} 5...
Be7 {[%clk 0:02:55.6]} 6. Nf3 {[%clk 0:02:30.8]} 6... O-O {[%clk 0:02:46.5]} 7.
h4 {[%clk 0:02:18.4]} 7... exd5 {[%clk 0:02:43.8]} 8. exd5 {[%clk 0:02:16.1]}
8... Re8 {[%clk 0:02:43.7]} 9. Be2 {[%clk 0:02:16.4]} 9... h6 {[%clk 0:02:42.9]}
10. Qd3 {[%clk 0:02:13.4]} 10... Ng4 {[%clk 0:02:39.3]} 11. Bf4 {[%clk
0:01:51.6]} 11... b6 {[%clk 0:02:37.4]} 12. Bg3 {[%clk 0:01:46.6]} 12... Ba6
{[%clk 0:02:36.2]} 13. Nb5 {[%clk 0:01:46.5]} 13... Bf6 {[%clk 0:02:30.2]} 14.
O-O-O {[%clk 0:01:39.3]} 14... Nd7 {[%clk 0:02:29.6]} 15. Qd2 {[%clk 0:01:21.8]}
15... Nde5 {[%clk 0:02:22.4]} 16. Nxe5 {[%clk 0:01:12.4]} 16... Bxe5 {[%clk
0:02:11.9]} 17. Bxg4 {[%clk 0:01:06.3]} 17... Bxb5 {[%clk 0:02:11.7]} 18. Bxe5
{[%clk 0:01:01.6]} 18... Rxe5 {[%clk 0:02:12.6]} 19. f4 {[%clk 0:01:01.8]} 19...
Re4 {[%clk 0:02:12.6]} 20. Bf3 {[%clk 0:00:51]} 20... Rd4 {[%clk 0:02:12.4]} 21.
Qf2 {[%clk 0:00:39.5]} 21... Rxf4 {[%clk 0:02:08]} 22. Rhe1 {[%clk 0:00:33.3]}
22... Qf6 {[%clk 0:02:06.4]} 23. Qe3 {[%clk 0:00:32.4]} 23... Rxh4 {[%clk
0:02:02.9]} 24. Qe7 {[%clk 0:00:30.8]} 24... Qg5+ {[%clk 0:01:42.1]} 25. Kb1
{[%clk 0:00:28.8]} 25... Qxe7 {[%clk 0:01:35.5]} 26. Rxe7 {[%clk 0:00:28.5]}
26... Rf4 {[%clk 0:01:32.7]} 27. Rde1 {[%clk 0:00:23.8]} 27... g5 {[%clk
0:01:32]} 28. Bh5 {[%clk 0:00:21.3]} 28... Bc4 {[%clk 0:01:29.2]} 29. g3 {[%clk
0:00:14.3]} 29... Rf6 {[%clk 0:01:27.2]} 30. Rd1 {[%clk 0:00:06.7]} 30... Kf8
{[%clk 0:01:26.7]} 31. Rc7 {[%clk 0:00:05.4]} 31... Re8 {[%clk 0:01:24.8]} 32.
b3 {[%clk 0:00:04.8]} 32... Be2 {[%clk 0:01:24.9]} 33. Bxe2 {[%clk 0:00:03.8]}
33... Rxe2 {[%clk 0:01:25.8]} 34. Rxa7 {[%clk 0:00:04.4]} 34... b5 {[%clk
0:01:22.7]} 35. a4 {[%clk 0:00:03.6]} 35... bxa4 {[%clk 0:01:22.9]} 36. Rxa4
{[%clk 0:00:03.8]} 36... Re3 {[%clk 0:01:22.2]} 37. Kb2 {[%clk 0:00:02.6]} 37...
Rxg3 {[%clk 0:01:21.8]} 38. Re1 {[%clk 0:00:03.3]} 38... Kg7 {[%clk 0:01:21.4]}
39. Ra7 {[%clk 0:00:03.7]} 39... h5 {[%clk 0:01:20.9]} 40. Ra8 {[%clk
0:00:04.3]} 40... h4 {[%clk 0:01:20.7]} 41. Ree8 {[%clk 0:00:05]} 41... Rh6
{[%clk 0:01:17.7]} 42. Rg8+ {[%clk 0:00:04.6]} 42... Kf6 {[%clk 0:01:17.3]} 43.
Rge8 {[%clk 0:00:04]} 43... h3 {[%clk 0:01:16.3]} 44. Rad8 {[%clk 0:00:04.2]}
44... Kf5 {[%clk 0:01:16.1]} 0-1

[Event "*** Titled Tuesday Blitz"]
[Site "Chess.com"]
[Date "2020.12.01"]
[Round "7"]
[White "AniJak"]
[Black "sokidze"]
[Result "0-1"]
[WhiteElo "2383"]
[BlackElo "2505"]
[TimeControl "180+1"]
[EndTime "11:15:24 PST"]
[Termination "sokidze won by resignation"]

1. e4 {[%clk 0:03:00.9]} 1... c5 {[%clk 0:03:00.2]} 2. Nc3 {[%clk 0:03:00.4]}
2... Nc6 {[%clk 0:03:00.2]} 3. g3 {[%clk 0:03:01.1]} 3... g6 {[%clk 0:02:59.9]}
4. Bg2 {[%clk 0:03:01.5]} 4... Bg7 {[%clk 0:03:00.4]} 5. d3 {[%clk 0:03:02.1]}
5... e5 {[%clk 0:03:00.8]} 6. Nh3 {[%clk 0:03:01.2]} 6... d6 {[%clk 0:02:59.3]}
7. O-O {[%clk 0:03:01.3]} 7... Nge7 {[%clk 0:02:50.8]} 8. f4 {[%clk 0:03:01.5]}
8... Nd4 {[%clk 0:02:48.6]} 9. Nd5 {[%clk 0:02:47.2]} 9... Nxd5 {[%clk
0:02:33.8]} 10. exd5 {[%clk 0:02:48.1]} 10... O-O {[%clk 0:02:34.4]} 11. c3
{[%clk 0:02:41.6]} 11... Nf5 {[%clk 0:02:34.3]} 12. Ng5 {[%clk 0:02:27.9]} 12...
Ne7 {[%clk 0:02:18.3]} 13. Be3 {[%clk 0:02:09.1]} 13... h6 {[%clk 0:02:14.8]}
14. Nh3 {[%clk 0:02:03.7]} 14... Nf5 {[%clk 0:02:04.7]} 15. Bf2 {[%clk
0:02:02.2]} 15... b6 {[%clk 0:02:04.9]} 16. fxe5 {[%clk 0:01:37.6]} 16... dxe5
{[%clk 0:02:01.6]} 17. c4 {[%clk 0:01:26.2]} 17... Nd4 {[%clk 0:01:54.2]} 18.
Bxd4 {[%clk 0:01:22.3]} 18... exd4 {[%clk 0:01:47.6]} 19. Qf3 {[%clk 0:01:19.6]}
19... Rb8 {[%clk 0:01:42.6]} 20. Qf4 {[%clk 0:01:15.4]} 20... Bf5 {[%clk
0:01:38.8]} 21. Qf3 {[%clk 0:01:08.7]} 21... Qd7 {[%clk 0:01:36.5]} 22. Nf4
{[%clk 0:01:07.4]} 22... Rfe8 {[%clk 0:01:30]} 23. Rae1 {[%clk 0:01:06]} 23...
Bg4 {[%clk 0:01:25.5]} 24. Qf2 {[%clk 0:01:04.9]} 24... g5 {[%clk 0:01:25.9]}
25. Ne2 {[%clk 0:00:57.3]} 25... Re3 {[%clk 0:01:25.8]} 26. h3 {[%clk
0:00:45.3]} 26... Bh5 {[%clk 0:01:25.8]} 27. g4 {[%clk 0:00:43.2]} 27... Bg6
{[%clk 0:01:25.6]} 28. Ng3 {[%clk 0:00:29.6]} 28... Bxd3 {[%clk 0:01:20]} 29.
Nf5 {[%clk 0:00:22.6]} 29... Bxf1 {[%clk 0:01:11]} 30. Nxe3 {[%clk 0:00:18.1]}
30... Bxg2 {[%clk 0:01:06.9]} 31. Nxg2 {[%clk 0:00:18.1]} 31... Re8 {[%clk
0:01:07.5]} 32. Rf1 {[%clk 0:00:16.7]} 32... d3 {[%clk 0:01:03.8]} 33. Kh1
{[%clk 0:00:17.2]} 33... Qe7 {[%clk 0:00:55.1]} 34. Rd1 {[%clk 0:00:16.4]} 34...
Qe2 {[%clk 0:00:54.2]} 35. Qxe2 {[%clk 0:00:10.6]} 35... dxe2 {[%clk 0:00:55.1]}
36. Re1 {[%clk 0:00:10.4]} 36... Bxb2 {[%clk 0:00:51.9]} 0-1

[Event "*** Titled Tuesday Blitz"]
[Site "Chess.com"]
[Date "2020.12.01"]
[Round "7"]
[White "Gabrielian_Artur"]
[Black "anasta10"]
[Result "1/2-1/2"]
[WhiteElo "2739"]
[BlackElo "2442"]
[TimeControl "180+1"]
[EndTime "11:15:29 PST"]
[Termination "Game drawn by repetition"]

1. e4 {[%clk 0:03:00.9]} 1... e6 {[%clk 0:02:55.1]} 2. d4 {[%clk 0:02:59.9]}
2... d5 {[%clk 0:02:52.9]} 3. exd5 {[%clk 0:02:58.5]} 3... exd5 {[%clk
0:02:52.6]} 4. Bd3 {[%clk 0:02:58.5]} 4... Nc6 {[%clk 0:02:50]} 5. Nf3 {[%clk
0:02:55.4]} 5... Bd6 {[%clk 0:02:46.2]} 6. O-O {[%clk 0:02:54.7]} 6... Nge7
{[%clk 0:02:45]} 7. c3 {[%clk 0:02:54.8]} 7... Bf5 {[%clk 0:02:42.6]} 8. Re1
{[%clk 0:02:53.8]} 8... Qd7 {[%clk 0:02:42.1]} 9. a4 {[%clk 0:02:42.6]} 9... O-O
{[%clk 0:02:38.4]} 10. Bxf5 {[%clk 0:02:40.9]} 10... Nxf5 {[%clk 0:02:37.1]} 11.
Nbd2 {[%clk 0:02:38.9]} 11... Rfe8 {[%clk 0:02:36.3]} 12. Nf1 {[%clk 0:02:38.8]}
12... Rxe1 {[%clk 0:02:34]} 13. Qxe1 {[%clk 0:02:38.4]} 13... Re8 {[%clk
0:02:34.7]} 14. Qd1 {[%clk 0:02:38.6]} 14... Nce7 {[%clk 0:02:27.3]} 15. Ng3
{[%clk 0:02:36.2]} 15... Nxg3 {[%clk 0:02:26.8]} 16. hxg3 {[%clk 0:02:36.2]}
16... c6 {[%clk 0:02:26.9]} 17. Bf4 {[%clk 0:02:30.3]} 17... Bxf4 {[%clk
0:02:25.4]} 18. gxf4 {[%clk 0:02:30.5]} 18... Ng6 {[%clk 0:02:26.1]} 19. Ne5
{[%clk 0:02:25.6]} 19... Qf5 {[%clk 0:02:09.5]} 20. g3 {[%clk 0:02:22.8]} 20...
f6 {[%clk 0:02:06.1]} 21. Nxg6 {[%clk 0:02:21.7]} 21... Qxg6 {[%clk 0:02:07]}
22. Qb3 {[%clk 0:02:18.2]} 22... Re7 {[%clk 0:02:06.9]} 23. a5 {[%clk
0:02:12.1]} 23... a6 {[%clk 0:02:05.6]} 24. Qb6 {[%clk 0:02:11.5]} 24... Qe8
{[%clk 0:01:58.9]} 25. Kg2 {[%clk 0:02:08.7]} 25... h5 {[%clk 0:01:55.6]} 26.
Rh1 {[%clk 0:02:06.3]} 26... Re2 {[%clk 0:01:49.8]} 27. Rf1 {[%clk 0:01:56.6]}
27... Re7 {[%clk 0:01:39.6]} 28. Qc5 {[%clk 0:01:44.9]} 28... h4 {[%clk
0:01:22.8]} 29. c4 {[%clk 0:01:38.4]} 29... hxg3 {[%clk 0:01:16]} 30. cxd5
{[%clk 0:01:37.5]} 30... gxf2 {[%clk 0:01:12.1]} 31. d6 {[%clk 0:01:32.8]} 31...
Re1 {[%clk 0:00:53.9]} 32. Qc4+ {[%clk 0:01:25.5]} 32... Kh8 {[%clk 0:00:49.3]}
33. Qd3 {[%clk 0:00:48]} 33... Rxf1 {[%clk 0:00:42.5]} 34. Qxf1 {[%clk
0:00:40.6]} 34... Qe4+ {[%clk 0:00:40.1]} 35. Kg3 {[%clk 0:00:40.2]} 35... Qe3+
{[%clk 0:00:37.6]} 36. Kg2 {[%clk 0:00:29.8]} 36... Qe4+ {[%clk 0:00:36.7]} 37.
Kg3 {[%clk 0:00:29.3]} 37... Qe3+ {[%clk 0:00:36.6]} 38. Kg2 {[%clk 0:00:28.8]}
38... Qe4+ {[%clk 0:00:30.1]} 1/2-1/2

[Event "*** Titled Tuesday Blitz"]
[Site "Chess.com"]
[Date "2020.12.01"]
[Round "7"]
[White "serhanberat_ozdemir"]
[Black "vanyakuba"]
[Result "0-1"]
[WhiteElo "2353"]
[BlackElo "2480"]
[TimeControl "180+1"]
[EndTime "11:15:29 PST"]
[Termination "vanyakuba won on time"]

1. e4 {[%clk 0:02:57.6]} 1... d5 {[%clk 0:02:59.9]} 2. exd5 {[%clk 0:02:57.1]}
2... Qxd5 {[%clk 0:03:00.8]} 3. Nc3 {[%clk 0:02:57.7]} 3... Qa5 {[%clk
0:03:00.8]} 4. d4 {[%clk 0:02:53.2]} 4... Nf6 {[%clk 0:03:01]} 5. Bc4 {[%clk
0:02:51.1]} 5... Bg4 {[%clk 0:02:49.8]} 6. Nf3 {[%clk 0:02:44.7]} 6... Nc6
{[%clk 0:02:49]} 7. h3 {[%clk 0:02:27.9]} 7... Bh5 {[%clk 0:02:47.7]} 8. g4
{[%clk 0:02:26.9]} 8... Bg6 {[%clk 0:02:47.7]} 9. Be3 {[%clk 0:02:19.8]} 9...
O-O-O {[%clk 0:02:47]} 10. Qe2 {[%clk 0:02:11.9]} 10... e5 {[%clk 0:01:59.2]}
11. dxe5 {[%clk 0:02:02.3]} 11... Ne4 {[%clk 0:01:58.1]} 12. O-O {[%clk
0:01:38.2]} 12... Nxc3 {[%clk 0:01:47.9]} 13. bxc3 {[%clk 0:01:39.1]} 13... Qxc3
{[%clk 0:01:40.4]} 14. Rfd1 {[%clk 0:01:06.7]} 14... Rxd1+ {[%clk 0:01:37.6]}
15. Rxd1 {[%clk 0:01:07.6]} 15... Qxc2 {[%clk 0:01:37.7]} 16. Rd2 {[%clk
0:00:46]} 16... Qb1+ {[%clk 0:01:31.9]} 17. Kg2 {[%clk 0:00:40.1]} 17... Ba3
{[%clk 0:01:23]} 18. e6 {[%clk 0:00:18.7]} 18... Be4 {[%clk 0:01:00.7]} 19. exf7
{[%clk 0:00:02.3]} 19... Ne5 {[%clk 0:01:00.3]} 20. Bd5 {[%clk 0:00:02.4]} 20...
Nxf3 {[%clk 0:00:19.5]} 21. Bxe4 {[%clk 0:00:02.4]} 21... Ne1+ {[%clk
0:00:19.9]} 0-1

[Event "*** Titled Tuesday Blitz"]
[Site "Chess.com"]
[Date "2020.12.01"]
[Round "7"]
[White "Ladislav1969"]
[Black "ftorodent"]
[Result "0-1"]
[WhiteElo "2367"]
[BlackElo "2633"]
[TimeControl "180+1"]
[EndTime "11:15:32 PST"]
[Termination "ftorodent won on time"]

1. e4 {[%clk 0:03:00.9]} 1... c5 {[%clk 0:02:59.6]} 2. d4 {[%clk 0:03:00.9]}
2... cxd4 {[%clk 0:02:59.1]} 3. c3 {[%clk 0:03:01.8]} 3... d3 {[%clk 0:02:59.2]}
4. Bxd3 {[%clk 0:03:01.4]} 4... e6 {[%clk 0:02:58.4]} 5. c4 {[%clk 0:03:00.8]}
5... Nf6 {[%clk 0:02:58]} 6. Nc3 {[%clk 0:02:59.6]} 6... d6 {[%clk 0:02:58.1]}
7. f4 {[%clk 0:02:59.5]} 7... Nbd7 {[%clk 0:02:53.9]} 8. Nf3 {[%clk 0:02:58.6]}
8... a6 {[%clk 0:02:46.9]} 9. Be3 {[%clk 0:02:54.7]} 9... Qc7 {[%clk 0:02:46.2]}
10. h3 {[%clk 0:02:50.5]} 10... Be7 {[%clk 0:02:42.4]} 11. O-O {[%clk
0:02:50.2]} 11... b6 {[%clk 0:02:37.9]} 12. Rc1 {[%clk 0:02:50]} 12... Bb7
{[%clk 0:02:37.3]} 13. f5 {[%clk 0:02:36.3]} 13... Nc5 {[%clk 0:02:28.8]} 14.
fxe6 {[%clk 0:02:32.8]} 14... fxe6 {[%clk 0:02:26.6]} 15. Qc2 {[%clk 0:01:59.2]}
15... O-O {[%clk 0:02:09.7]} 16. b4 {[%clk 0:01:51.5]} 16... Nxd3 {[%clk
0:02:07.6]} 17. Qxd3 {[%clk 0:01:51.8]} 17... Rac8 {[%clk 0:02:07.2]} 18. Nd2
{[%clk 0:01:51.6]} 18... Nd7 {[%clk 0:01:57.6]} 19. Rxf8+ {[%clk 0:01:30.2]}
19... Bxf8 {[%clk 0:01:52.7]} 20. Bd4 {[%clk 0:01:26.9]} 20... Ne5 {[%clk
0:01:52.2]} 21. Bxe5 {[%clk 0:01:26.4]} 21... dxe5 {[%clk 0:01:52.3]} 22. a3
{[%clk 0:01:24.9]} 22... Rd8 {[%clk 0:01:48.9]} 23. Qe3 {[%clk 0:01:22.8]} 23...
a5 {[%clk 0:01:47.7]} 24. c5 {[%clk 0:00:49.8]} 24... axb4 {[%clk 0:01:38.2]}
25. axb4 {[%clk 0:00:41.9]} 25... bxc5 {[%clk 0:01:35.7]} 26. b5 {[%clk
0:00:36.7]} 26... c4 {[%clk 0:01:34.5]} 27. Kh2 {[%clk 0:00:29.1]} 27... Rd3
{[%clk 0:01:28.3]} 28. Qe2 {[%clk 0:00:23.1]} 28... Qc5 {[%clk 0:01:05.6]} 29.
Ncb1 {[%clk 0:00:20.6]} 29... Qxb5 {[%clk 0:00:53.4]} 30. Rxc4 {[%clk 0:00:20]}
30... Rd4 {[%clk 0:00:50.9]} 31. Qf1 {[%clk 0:00:13.7]} 31... Ba6 {[%clk
0:00:48]} 32. Nc3 {[%clk 0:00:08.6]} 32... Qb2 {[%clk 0:00:38]} 0-1

[Event "*** Titled Tuesday Blitz"]
[Site "Chess.com"]
[Date "2020.12.01"]
[Round "7"]
[White "csati17"]
[Black "ChristopherYoo"]
[Result "0-1"]
[WhiteElo "2593"]
[BlackElo "2850"]
[TimeControl "180+1"]
[EndTime "11:15:37 PST"]
[Termination "ChristopherYoo won by resignation"]

1. c4 {[%clk 0:02:55]} 1... e6 {[%clk 0:02:59.5]} 2. Nf3 {[%clk 0:02:54.7]} 2...
d5 {[%clk 0:03:00.4]} 3. g3 {[%clk 0:02:54.6]} 3... Nf6 {[%clk 0:03:00.4]} 4.
Bg2 {[%clk 0:02:54.8]} 4... Be7 {[%clk 0:03:01.2]} 5. O-O {[%clk 0:02:54.7]}
5... O-O {[%clk 0:03:01.9]} 6. b3 {[%clk 0:02:55.4]} 6... b6 {[%clk 0:03:01.7]}
7. Bb2 {[%clk 0:02:55.5]} 7... Bb7 {[%clk 0:03:02.3]} 8. Nc3 {[%clk 0:02:55.9]}
8... Nbd7 {[%clk 0:03:01.8]} 9. e3 {[%clk 0:02:48.4]} 9... c5 {[%clk 0:03:01.5]}
10. d4 {[%clk 0:02:44.6]} 10... Rc8 {[%clk 0:03:00.4]} 11. Ne5 {[%clk
0:02:39.5]} 11... cxd4 {[%clk 0:02:52.7]} 12. exd4 {[%clk 0:02:37]} 12... Qc7
{[%clk 0:02:49.7]} 13. cxd5 {[%clk 0:02:32.8]} 13... exd5 {[%clk 0:02:28.1]} 14.
Rc1 {[%clk 0:02:12.4]} 14... Qd6 {[%clk 0:02:06.4]} 15. Re1 {[%clk 0:01:36.8]}
15... a6 {[%clk 0:02:04.1]} 16. Bh3 {[%clk 0:01:25.6]} 16... Rc7 {[%clk
0:01:41.1]} 17. Qe2 {[%clk 0:01:19.9]} 17... Nb8 {[%clk 0:01:34.5]} 18. Nb1
{[%clk 0:01:15.4]} 18... Rxc1 {[%clk 0:01:31.5]} 19. Rxc1 {[%clk 0:01:16.3]}
19... Qd8 {[%clk 0:01:21.8]} 20. Nd2 {[%clk 0:01:13]} 20... Bd6 {[%clk
0:01:20.6]} 21. Qd3 {[%clk 0:01:06.3]} 21... Re8 {[%clk 0:01:08.2]} 22. f4
{[%clk 0:01:05.6]} 22... a5 {[%clk 0:01:05.5]} 23. g4 {[%clk 0:00:55]} 23... Na6
{[%clk 0:00:57.6]} 24. g5 {[%clk 0:00:51.9]} 24... Nb4 {[%clk 0:00:57.2]} 25.
Qf1 {[%clk 0:00:42.9]} 25... Ne4 {[%clk 0:00:55.2]} 26. Nxe4 {[%clk 0:00:39.6]}
26... dxe4 {[%clk 0:00:56.1]} 27. Qc4 {[%clk 0:00:29.2]} 27... Bxe5 {[%clk
0:00:40.6]} 28. fxe5 {[%clk 0:00:27.6]} 28... Qxg5+ {[%clk 0:00:39.8]} 29. Bg2
{[%clk 0:00:15.7]} 29... Qe3+ {[%clk 0:00:38.2]} 30. Kh1 {[%clk 0:00:14.8]}
30... Nd3 {[%clk 0:00:39]} 31. Rf1 {[%clk 0:00:10.4]} 31... Nf2+ {[%clk
0:00:37.5]} 32. Rxf2 {[%clk 0:00:10.9]} 32... Qxf2 {[%clk 0:00:38.1]} 33. Bc3
{[%clk 0:00:09.7]} 33... Rc8 {[%clk 0:00:33]} 34. Qb5 {[%clk 0:00:09.4]} 34...
e3 {[%clk 0:00:30.7]} 35. Bxb7 {[%clk 0:00:07.4]} 35... e2 {[%clk 0:00:30.8]}
36. Bxc8 {[%clk 0:00:05.6]} 0-1

[Event "*** Titled Tuesday Blitz"]
[Site "Chess.com"]
[Date "2020.12.01"]
[Round "7"]
[White "Tssunami"]
[Black "LionTheLeon_06"]
[Result "1-0"]
[WhiteElo "2439"]
[BlackElo "2618"]
[TimeControl "180+1"]
[EndTime "11:15:39 PST"]
[Termination "Tssunami won by resignation"]

1. Nf3 {[%clk 0:02:58.1]} 1... Nf6 {[%clk 0:02:59.2]} 2. c4 {[%clk 0:02:58]}
2... c5 {[%clk 0:02:57.2]} 3. Nc3 {[%clk 0:02:57.5]} 3... b6 {[%clk 0:02:57]} 4.
b3 {[%clk 0:02:54.4]} 4... Bb7 {[%clk 0:02:56.9]} 5. Bb2 {[%clk 0:02:55]} 5...
e6 {[%clk 0:02:57.2]} 6. e3 {[%clk 0:02:54.8]} 6... Be7 {[%clk 0:02:57.5]} 7.
Be2 {[%clk 0:02:55]} 7... O-O {[%clk 0:02:57.7]} 8. O-O {[%clk 0:02:55.5]} 8...
Nc6 {[%clk 0:02:56.5]} 9. d4 {[%clk 0:02:55.6]} 9... cxd4 {[%clk 0:02:56.4]} 10.
Nxd4 {[%clk 0:02:52.4]} 10... a6 {[%clk 0:02:48.9]} 11. Bf3 {[%clk 0:02:50.1]}
11... Qc7 {[%clk 0:02:48.9]} 12. Rc1 {[%clk 0:02:43.2]} 12... Rfd8 {[%clk
0:02:48.8]} 13. Qe2 {[%clk 0:02:36]} 13... Rac8 {[%clk 0:02:47.3]} 14. Rfd1
{[%clk 0:02:35.7]} 14... Qb8 {[%clk 0:02:46.4]} 15. Na4 {[%clk 0:02:31.7]} 15...
Nxd4 {[%clk 0:02:40.2]} 16. Bxd4 {[%clk 0:02:27.8]} 16... Bxf3 {[%clk 0:02:40]}
17. Qxf3 {[%clk 0:02:26]} 17... b5 {[%clk 0:02:40.1]} 18. Nb6 {[%clk 0:02:16.6]}
18... Rc7 {[%clk 0:02:29]} 19. cxb5 {[%clk 0:01:55.4]} 19... axb5 {[%clk
0:02:19.2]} 20. a4 {[%clk 0:01:50.7]} 20... bxa4 {[%clk 0:02:12.8]} 21. bxa4
{[%clk 0:01:49.8]} 21... d6 {[%clk 0:02:10.5]} 22. a5 {[%clk 0:01:46.3]} 22...
e5 {[%clk 0:01:31.1]} 23. Bb2 {[%clk 0:01:35.5]} 23... h6 {[%clk 0:01:19.2]} 24.
h3 {[%clk 0:01:25.7]} 24... Rxc1 {[%clk 0:00:53.6]} 25. Rxc1 {[%clk 0:01:24.3]}
25... Qa7 {[%clk 0:00:53.8]} 26. Nc8 {[%clk 0:01:11.2]} 26... Qd7 {[%clk
0:00:46.1]} 27. Nxe7+ {[%clk 0:01:06.8]} 27... Qxe7 {[%clk 0:00:47]} 28. a6
{[%clk 0:01:06.1]} 28... Rb8 {[%clk 0:00:36.6]} 29. Ba3 {[%clk 0:00:54.3]} 29...
e4 {[%clk 0:00:28]} 30. Qf5 {[%clk 0:00:50.4]} 30... Nd7 {[%clk 0:00:10.2]} 31.
a7 {[%clk 0:00:37.3]} 31... Ra8 {[%clk 0:00:08]} 32. Rc7 {[%clk 0:00:37.2]}
32... Qe5 {[%clk 0:00:06.5]} 33. Qxd7 {[%clk 0:00:35.3]} 33... Qa1+ {[%clk
0:00:06.2]} 34. Kh2 {[%clk 0:00:35.5]} 34... Qxa3 {[%clk 0:00:06.2]} 35. Qxf7+
{[%clk 0:00:35.6]} 1-0